Cogmind - Beta 9.4 @@@ ROGUE MODE // 2020.01.29 @ 16:34:24 Player: alice_fexa Result: Self-destructed Performance ------------- Evolutions (8) 4000 Regions Visited (15) 3000 Robots Destroyed (198) 990 Value Destroyed (7331) 7331 Prototype IDs (47) 940 Alien Tech Used (0) 0 Bonus (1569) 1569 TOTAL SCORE: 17830 Bonus ------- High Alert Combat Kills 542 Follower Combat Kills 27 Entered Garrisons 200 Used RIF Installer 500 Aligned with FarCom 300 Cogmind --------- Core Integrity 1450/1450 Matter 300/300 Energy 170/170 System Corruption 0% Temperature Cool (0) Movement Rolling (160) Ox7 Location -2/Research Parts ------- > --- POWER (2) -------- Micro Fission Core > --- PROPULSION (5) --- Heavy Siege Treads Centrium Wheel > --- UTILITY (12) ----- High-capacity Storage Unit High-capacity Storage Unit High-capacity Storage Unit Advanced Sensor Array Advanced Signal Interpreter Advanced Targeting Computer Improved Armor Integrity Analyzer Advanced Transmission Jammer Advanced Thermal Shield Improved Hacking Suite > --- WEAPON (4) ------- Gamma Rifle Helical Railgun Ionic Axe > --- INVENTORY (28) --- Light Antimatter Reactor Light Particle Reactor Advanced Heavy Treads Advanced Heavy Treads Centrium Heavy Treads Experimental Cooling System Experimental Cooling System Experimental Cooling System Advanced Coolant Injector Improved Matter Compressor (255) Advanced Signal Interpreter Improved Weapon Cycler Hypervelocity EM Gauss Rifle HERF Cannon Compact HERF Cannon High-powered Disruptor Cannon Firepult Potential Cannon Linear Accelerator Tesla Bomb Launcher Heavy Proton Missile Launcher Heavy Proton Missile Launcher Peak State ------------ > --- POWER ------------ Light Particle Reactor Light Particle Reactor > --- PROPULSION ------- Improved Heavy Treads Armored Wheel Centrium Wheel Centrium Wheel > --- UTILITY ---------- Advanced Coolant Injector High-capacity Storage Unit High-capacity Storage Unit High-capacity Storage Unit Advanced Signal Interpreter Advanced Targeting Computer Improved Armor Integrity Analyzer Advanced Transmission Jammer Advanced Thermal Shield Improved Hacking Suite > --- WEAPON ----------- Dispersion Rifle Hypervelocity Railgun Helical Railgun Ionic Axe > --- INVENTORY -------- Micro Fission Core Light Antimatter Reactor Heavy Siege Treads Advanced Heavy Treads Advanced Heavy Treads Experimental Cooling System Experimental Cooling System Experimental Cooling System Improved Matter Compressor Advanced Sensor Array Advanced Signal Interpreter Improved Weapon Cycler Hypervelocity EM Gauss Rifle HERF Cannon Compact HERF Cannon High-powered Disruptor Cannon Firepult Potential Cannon Linear Accelerator Tesla Bomb Launcher Heavy Proton Missile Launcher Heavy Proton Missile Launcher [Rating: 139] Favorites ----------- Power Micro Nuclear Core Engine Heavy Ion Engine Power Core Micro Nuclear Core Reactor Light Particle Reactor Propulsion Wheel Treads Improved Treads Wheel Wheel Hover Unit Improved Antigrav System Utility High-capacity Storage Unit Device Advanced Sensor Array Storage High-capacity Storage Unit Processor Advanced Targeting Computer Hackware Improved Hacking Suite Protection Layered Light Armor Plating Weapon Minigun Energy Gun Tesla Rifle Energy Cannon Advanced Beam Cannon Ballistic Gun Minigun Ballistic Cannon Magnetic Acceleration Cannon Launcher Missile Launcher Slashing Weapon Great Axe Piercing Weapon Kinetic Spear Build | -11 -10 -10 -9 -9 -9 -8 -8 -8 -7 -6 -5 -4 -3 -3 -2 ------- Run | Scr Mat Min Mat Min Exi Min Mat Gar Fac Fac Fac Fac Res Tes Res Slots Evolved 16 | . . . 2 . . . 2 . 2 2 2 2 2 . 2 Power 1 | . . . . . . . . . . . 1 . . . . Propulsion 3 | . . . 1 . . . . . . 1 . 1 . . . Utility 10 | . . . 1 . . . 2 . 1 1 1 1 1 . 2 Weapon 2 | . . . . . . . . . 1 . . . 1 . . Parts Attached 251 | 6 21 . 19 6 2 . 16 2 11 14 50 40 32 32 . Power 33 | 1 4 . 2 . 1 . 2 . . 2 5 6 5 5 . Engine 10 | 1 3 . 2 . 1 . 1 . . . . 2 . . . Core 16 | . 1 . . . . . 1 . . 2 4 2 3 3 . Reactor 7 | . . . . . . . . . . . 1 2 2 2 . Propulsion 54 | 2 3 . 6 4 . . 5 . 4 4 13 8 3 2 . Treads 17 | 1 1 . 1 . . . 3 . 1 1 2 4 2 1 . Leg . | . . . . . . . . . . . . . . . . Wheel 36 | 1 2 . 5 4 . . 2 . 3 3 11 4 . 1 . Hover 1 | . . . . . . . . . . . . . 1 . . Flight . | . . . . . . . . . . . . . . . . Utility 74 | 1 6 . 4 . . . 4 . 3 3 15 13 15 10 . Device 41 | . 2 . 1 . . . 2 . 2 1 6 6 13 8 . Storage 9 | 1 3 . 1 . . . . . . . . 2 . 2 . Processor 11 | . 1 . 2 . . . . . 1 2 2 1 2 . . Hackware 3 | . . . . . . . . . . . 2 1 . . . Protection 10 | . . . . . . . 2 . . . 5 3 . . . Artifact . | . . . . . . . . . . . . . . . . Weapon 90 | 2 8 . 7 2 1 . 5 2 4 5 17 13 9 15 . Energy Gun 22 | 1 4 . . . . . 1 . 2 . 4 2 4 4 . Energy Cannon 22 | . 2 . 2 1 1 . . . 1 1 3 7 1 3 . Ballistic Gun 16 | 1 1 . 1 . . . 2 . 1 1 5 1 2 1 . Ballistic Cannon 6 | . 1 . 2 . . . . . . 1 1 1 . . . Launcher 10 | . . . 2 1 . . . 1 . 1 2 1 . 2 . Special Weapon . | . . . . . . . . . . . . . . . . Impact Weapon . | . . . . . . . . . . . . . . . . Slashing Weapon 10 | . . . . . . . 2 1 . 1 2 . . 4 . Piercing Weapon 4 | . . . . . . . . . . . . 1 2 1 . Special Melee Weapon . | . . . . . . . . . . . . . . . . Unidentified Prototypes 14 | . . . 1 . . . 1 . . . 5 1 2 4 . Parts Lost 67 | . 7 . 1 . . . . . 4 6 15 18 7 9 . Power 6 | . . . . . . . . . . . 1 1 1 3 . Propulsion 24 | . 2 . 1 . . . . . 3 2 6 5 2 3 . Utility 12 | . 1 . . . . . . . . 1 4 5 . 1 . Weapon 25 | . 4 . . . . . . . 1 3 4 7 4 2 . Highest Loss Streak 15 | . 3 . 1 . . . . . 4 6 5 15 3 3 . Average Slot Usage (%) 96 | . 97 100 99 100 100 100 99 100 98 93 94 93 94 92 . Engine 3 | . 11 . 9 11 11 11 6 . . . . 2 . . . Core 4 | . 2 14 1 . . . 2 9 7 6 7 5 4 1 . Reactor 1 | . . . . . . . . . . . 2 1 3 7 . Treads 8 | . 13 14 11 11 11 11 8 9 6 5 3 9 7 3 . Wheel 14 | . 14 14 21 22 22 22 17 18 13 13 14 10 9 11 . Device 8 | . 6 . . . . . 9 9 14 12 10 9 9 12 . Storage 15 | . 14 14 21 22 22 22 18 18 15 13 11 14 14 13 . Processor 12 | . 4 14 11 11 11 11 9 9 14 20 15 10 14 14 . Hackware 3 | . . . . . . . . . . . 3 10 9 5 . Protection 2 | . . . . . . . 8 9 . . 3 1 . . . Energy Gun 2 | . 5 . . . . . . . 5 3 1 . 8 2 . Energy Cannon 5 | . 9 14 11 10 11 11 3 . 3 . 3 4 2 2 . Ballistic Gun 6 | . 6 . 6 11 11 11 9 3 3 5 5 8 1 7 . Ballistic Cannon 1 | . 7 14 3 . . . . . . 2 2 . 1 . . Slashing Weapon 2 | . . . . . . . 5 6 7 5 2 . . 3 . Naked Turns . | . . . . . . . . . . . . . . . . Heaviest Build 157 | 13 43 43 80 79 79 79 86 85 87 93 117 140 151 157 . Greatest Support 103 | 20 16 10 26 26 20 20 26 20 24 38 46 44 103 44 . Greatest Overweight (x) 10 | 1 4 4 7 3 3 3 8 4 6 8 10 5 4 8 . Average Overweight (x) 3 | . 2 4 3 2 3 3 3 4 3 2 2 3 3 3 . Largest Inventory Capacity 28 | 6 12 12 20 20 20 20 20 20 20 20 20 28 28 28 . Average Capacity 21 | 5 9 12 19 20 20 20 20 20 20 20 20 26 28 27 . Most Carried 28 | 4 12 12 20 20 20 20 20 20 20 20 20 28 28 28 . Average Carried 20 | 2 8 12 18 19 19 20 19 20 19 18 19 23 26 27 . Final Capacity 28 | 6 12 12 20 20 20 20 20 20 20 20 20 28 28 28 28 Final Carried 28 | 4 12 12 20 20 20 20 20 20 20 19 20 21 28 28 28 Class Distribution -------------------- 66% | Hauler-Mutant 12% | Hauler-Assassin 9% | Mutant 4% | Hauler-Gunner Dominant Class ---------------- Mutant | -10/Materials Mutant | -10/Mines Hauler-Mutant | -9/Materials Hauler-Mutant | -9/Mines Hauler-Mutant | -9/Exiles Hauler-Mutant | -8/Mines Hauler-Mutant | -8/Materials Hauler-Mutant | -8/Garrison Hauler-Mutant | -7/Factory Hauler-Assassin | -6/Factory Hauler-Mutant | -5/Factory Hauler-Mutant | -4/Factory Hauler-Mutant | -3/Research Hauler-Mutant | -3/Testing Hauler-Mutant | -2/Research Resources | -11 -10 -10 -9 -9 -9 -8 -8 -8 -7 -6 -5 -4 -3 -3 -2 ----------- Run | Scr Mat Min Mat Min Exi Min Mat Gar Fac Fac Fac Fac Res Tes Res Matter Collected 5479 | 260 391 48 463 62 . 40 278 12 237 327 1003 682 692 984 . Remotely . | . . . . . . . . . . . . . . . . Salvage Created 8368 | . 824 78 1030 83 . 40 636 30 284 308 2209 1051 964 831 . Parts 433 | . 52 2 56 12 . 2 40 4 3 23 92 49 50 48 . Haulers Intercepted 8 | . 2 . 4 . . . 1 . . . . . 1 . . Recyclers Shooed 14 | . 4 . 3 . . . . . . 1 5 . 1 . . Parts Field Recycled . | . . . . . . . . . . . . . . . . Retrieved Matter . | . . . . . . . . . . . . . . . . Parts Self-Destructed . | . . . . . . . . . . . . . . . . Prevented . | . . . . . . . . . . . . . . . . Kills | -11 -10 -10 -9 -9 -9 -8 -8 -8 -7 -6 -5 -4 -3 -3 -2 ------- Run | Scr Mat Min Mat Min Exi Min Mat Gar Fac Fac Fac Fac Res Tes Res Combat Hostiles Destroyed 140 | . 15 3 21 3 . 1 10 8 3 6 22 23 12 13 . Melee 5 | . . . . . . . 3 . . . . . . 2 . Guns 42 | . 8 . 1 1 . . 4 . 1 1 7 10 3 6 . Cannons 57 | . 7 3 11 1 . 1 3 . 1 2 9 11 8 . . AOE 30 | . . . 9 1 . . . 8 . 3 4 2 1 2 . Classes Destroyed 16 | . 8 1 2 1 . 1 . . . . 3 . . . . Worker 10 | . 1 . . . . . 1 . . . 8 . . . . Builder 12 | . . . . 1 . . . . . 4 4 2 1 . . Tunneler 5 | . 1 . 3 1 . . . . . . . . . . . Hauler 8 | . 2 . 4 . . . 1 . . . . . 1 . . Recycler 10 | . 1 . 1 . . . 1 . 1 1 4 . 1 . . Operator 3 | . 3 . . . . . . . . . . . . . . Watcher 10 | . 2 . 3 . . . 1 . . . 4 . . . . Swarmer 35 | . 3 . 7 2 . . . 8 . 3 . 8 . 4 . Saboteur 1 | . . . . . . . . . . . 1 . . . . Grunt 47 | . 12 2 9 1 . . 5 . . 1 5 9 . 3 . Brawler 4 | . . . . . . . . . . . 4 . . . . Duelist 3 | . . . 1 . . . . . . 1 1 . . . . Sentry 16 | . . . 4 . . . 4 . 1 . 4 1 2 . . Demolisher 1 | . . 1 . . . . . . . . . . . . . Hunter 10 | . . . . . . 1 1 . 2 1 1 . 2 2 . Programmer 23 | . . . . . . . . . . . 6 5 8 4 . Best Kill Streak 9 | . 7 1 4 2 . 1 3 4 1 3 9 7 4 4 . Combat Bots Only 7 | . 3 1 4 2 . 1 3 4 1 3 5 7 3 4 . Max Kills in Single Turn 4 | . 2 1 2 2 . 1 1 4 1 2 3 2 3 2 . Gunslinging . | . . . . . . . . . . . . . . . . Exploded 4 | . . . 2 1 . . . 4 . 2 1 1 1 2 . Melee 1 | . . . . . . . 1 . . . . . . 1 . Uniques/NPCs Destroyed . | . . . . . . . . . . . . . . . . Combat | -11 -10 -10 -9 -9 -9 -8 -8 -8 -7 -6 -5 -4 -3 -3 -2 -------- Run | Scr Mat Min Mat Min Exi Min Mat Gar Fac Fac Fac Fac Res Tes Res Damage Taken 15369 | . 765 129 435 9 . 32 578 142 691 993 2647 4143 2150 2655 . Core 1494 | . 98 67 57 . . . 58 17 63 109 234 486 86 219 . Absorbed by Shields . | . . . . . . . . . . . . . . . . Reduced by Siege Mode 866 | . . . . . . . . . . . . 559 151 156 . Core Remaining (%) 76 | 100 . 34 . . . 85 . 86 91 87 76 57 . 76 . Volleys Fired 509 | . 87 11 62 4 . 2 29 5 32 29 98 74 48 28 . Largest 4 | . 2 2 2 2 . 2 2 1 2 2 3 3 4 4 . Hottest 317 | . 100 95 103 93 . 93 93 36 123 133 208 202 317 260 . Shots Fired 1051 | . 160 22 113 8 . 4 51 5 63 56 193 151 149 76 . Gun 576 | . 99 . 25 4 . 2 29 1 52 28 96 82 94 64 . Cannon 450 | . 61 22 80 3 . 2 22 . 11 26 90 67 55 11 . Launcher 25 | . . . 8 1 . . . 4 . 2 7 2 . 1 . Special . | . . . . . . . . . . . . . . . . Kinetic 488 | . 71 11 49 4 . 2 29 1 20 43 89 84 39 46 . Thermal 391 | . 82 11 49 3 . 2 22 . 11 5 68 58 69 11 . Explosive 15 | . . . 8 1 . . . 4 . 2 . . . . . Electromagnetic 157 | . 7 . 7 . . . . . 32 6 36 9 41 19 . Robot Hit Streak 53 | . 16 5 10 10 . 11 11 5 13 15 16 49 53 11 . Robot Miss Streak 4 | . 3 1 2 . . 1 2 2 4 3 2 3 4 2 . Penetration Max 1 | . . . . . . . . . . . 1 1 1 . . Secondary Targets 2 | . 2 . . . . . . . . . . . . . . Max Gunslinging Chain 1 | . 1 . . . . . . . . . . . . . . Shots Hit Robots 780 | . 111 15 77 6 . 2 48 1 53 45 143 91 120 68 . Core Hits 343 | . 38 5 37 5 . 1 23 10 12 28 79 40 41 24 . Critical Hits 40 | . . . 7 . . 1 4 . . . 7 7 4 10 . Critical Kills 15 | . . . 3 . . 1 1 . . . 3 4 1 2 . Critical Parts Destroyed 25 | . . . 4 . . . 3 . . . 4 3 3 8 . Melee Attacks 145 | . . . . . . . 29 13 16 17 19 . 19 32 . Impact . | . . . . . . . . . . . . . . . . Slashing 125 | . . . . . . . 29 13 16 17 19 . . 31 . Piercing 20 | . . . . . . . . . . . . . 19 1 . Sneak Attacks 9 | . . . . . . . 1 . 1 . 3 . 4 . . Combat Hostiles . | . . . . . . . . . . . . . . . . Follow-up Attacks . | . . . . . . . . . . . . . . . . Damage Inflicted 23402 | . 1378 271 1893 196 . 40 1147 801 1120 1270 5717 3371 4111 2087 . Guns 8365 | . 729 . 238 51 . . 331 . 498 324 1981 1365 1775 1073 . Cannons 8683 | . 646 271 1040 62 . 40 387 . 165 563 2107 1414 1529 459 . Explosions 4213 | . . . 615 83 . . . 801 80 332 1146 590 296 270 . Melee 2127 | . . . . . . . 429 . 377 51 483 . 502 285 . Ramming 14 | . 3 . . . . . . . . . . 2 9 . . Kinetic 7209 | . 535 99 479 51 . . 331 . 200 692 1772 1421 918 711 . Thermal 8432 | . 762 172 709 62 . 40 387 . 245 105 2004 1134 2300 512 . Explosive 2284 | . . . 615 83 . . . 801 . 332 . 453 . . . Electromagnetic 3336 | . 78 . 90 . . . . . 298 90 1458 361 382 579 . Impact . | . . . . . . . . . . . . . . . . Slashing 1625 | . . . . . . . 429 . 377 51 483 . . 285 . Piercing 502 | . . . . . . . . . . . . . 502 . . Highest Corruption 39 | . . . . . . . . . 2 . 12 . 17 39 . Average Corruption 12 | . . . . . . . . . 1 . 7 . 9 23 . Corruption Purged . | . . . . . . . . . . . . . . . . Effects 201 | . . . . . . . . . 1 . 51 . 55 94 . Message Errors 32 | . . . . . . . . . . . 13 . 9 10 . Matter Fused 31 | . . . . . . . . . . . 10 . 7 14 . Heat Flow Errors 14 | . . . . . . . . . . . 4 . 6 4 . Energy Discharges 17 | . . . . . . . . . . . 4 . 5 8 . Parts Rejected 4 | . . . . . . . . . . . 2 . 1 1 . Data Loss (minor) 14 | . . . . . . . . . . . 3 . 6 5 . Data Loss (major) 4 | . . . . . . . . . . . 1 . 2 1 . Misfires 3 | . . . . . . . . . . . 3 . . . . Alerts 3 | . . . . . . . . . . . . . . 3 . Misdirections 23 | . . . . . . . . . . . 3 . 7 13 . Targeting Errors 51 | . . . . . . . . . 1 . 8 . 9 33 . Weapon Failures 5 | . . . . . . . . . . . . . 3 2 . Overload Shots . | . . . . . . . . . . . . . . . . Overflow Damage 1011 | . 21 9 15 13 . . 52 . 110 15 251 86 376 63 . Projectiles 196 | . 21 9 10 . . . 1 . . . 26 15 101 13 . Explosions 330 | . . . 5 13 . . . . . 14 49 71 128 50 . Melee 485 | . . . . . . . 51 . 110 1 176 . 147 . . Knockbacks 23 | . 4 . . . . . . . . 14 1 4 . . . Impact 1 | . . . . . . . . . . . . 1 . . . Kinetic 20 | . 4 . . . . . . . . 12 1 3 . . . Secondary 2 | . . . . . . . . . . 2 . . . . . Self-Inflicted Damage 321 | . 1 . 34 . . . . 38 . . 150 4 83 11 . Shots 9 | . . . 1 . . . . 1 . . 4 1 1 1 . Rammed 3 | . 1 . . . . . . . . . . 1 1 . . Targets Rammed 3 | . 1 . . . . . . . . . . 1 1 . . Kicked . | . . . . . . . . . . . . . . . . Crushed . | . . . . . . . . . . . . . . . . Highest Temperature 423 | . 168 117 270 48 . 74 17 . 26 60 423 241 262 404 . Average Temperature 78 | . 43 40 60 22 . 39 8 . 13 18 92 67 118 143 . Received Heat Transfer 2306 | . 369 44 117 . . . 207 . 42 81 459 855 27 105 . Effects 5 | . . . . . . . . . . . 4 . . 1 . Shutdowns 2 | . . . . . . . . . . . 1 . . 1 . Interference 3 | . . . . . . . . . . . 3 . . . . Siege Activations 16 | . . . . . . . . . . . . 3 7 6 . Total Turns 403 | . . . . . . . . . . . . 103 201 99 . Longest Duration 98 | . . . . . . . . . . . . 82 98 26 . Robots Corrupted 7 | . . . . . . . . . 1 . 3 . . 3 . Combat Hostiles 6 | . . . . . . . . . 1 . 2 . . 3 . Parts Fried 20 | . . . 1 . . . . . 5 . 9 . 1 4 . Impact Corruptions . | . . . . . . . . . . . . . . . . Robots Melted . | . . . . . . . . . . . . . . . . Combat Hostiles . | . . . . . . . . . . . . . . . . Parts Melted 12 | . 3 . 1 . . . . . . . 3 . 5 . . Heat Transferred 10522 | . 1675 370 1295 111 . 74 703 . 396 200 2057 1184 1950 507 . Parts Sabotaged . | . . . . . . . . . . . . . . . . Parts Stolen . | . . . . . . . . . . . . . . . . Parts Stripped . | . . . . . . . . . . . . . . . . Power Chain Reactions 4 | . . . . . . . . . 2 . . . 1 1 . Missiles Intercepted . | . . . . . . . . . . . . . . . . Alert | -11 -10 -10 -9 -9 -9 -8 -8 -8 -7 -6 -5 -4 -3 -3 -2 ------- Run | Scr Mat Min Mat Min Exi Min Mat Gar Fac Fac Fac Fac Res Tes Res Peak Influence 809 | . 247 103 437 228 . 45 193 333 244 183 809 601 336 380 . Average Influence 202 | . 70 40 197 217 . 43 63 186 140 45 437 212 232 186 . Maximum Alert Level 3 | . 1 . 2 1 . . . 1 1 . 3 2 1 1 . Low Security (%) 56 | 100 95 100 58 9 . 100 100 36 69 100 21 47 18 64 . Level 1 30 | . 4 . 39 90 . . . 63 30 . 11 38 81 35 . Level 2 12 | . . . 2 . . . . . . . 58 13 . . . Level 3 1 | . . . . . . . . . . . 7 . . . . Level 4 . | . . . . . . . . . . . . . . . . Level 5 . | . . . . . . . . . . . . . . . . High Security . | . . . . . . . . . . . . . . . . Max Security . | . . . . . . . . . . . . . . . . Squads Dispatched 36 | . 4 . 2 . . . 1 . 1 1 8 9 6 4 . Investigation 7 | . 1 . 1 . . . . . . . 1 3 . 1 . Extermination 12 | . . . . . . . . . 1 . 3 2 4 2 . Reinforcement 8 | . 3 . 1 . . . . . . 1 . . 2 1 . Assault 3 | . . . . . . . . . . . 2 1 . . . Garrison 6 | . . . . . . . 1 . . . 2 3 . . . Intercept . | . . . . . . . . . . . . . . . . Construction Impeded 1 | . . . 1 . . . . . . . . . . . . Haulers Reinforced . | . . . . . . . . . . . . . . . . Stealth | -11 -10 -10 -9 -9 -9 -8 -8 -8 -7 -6 -5 -4 -3 -3 -2 --------- Run | Scr Mat Min Mat Min Exi Min Mat Gar Fac Fac Fac Fac Res Tes Res Distress Signals 13 | . 2 . 6 . . . . . . 1 . 2 . 2 . Communications Jammed 10 | . . . . . . . . . . . . . 5 5 . Distress Signals 8 | . . . . . . . . . . . . . 3 5 . Times Spotted 244 | . 30 17 38 5 . 1 16 7 7 11 35 34 19 24 . Peak Tracking Total 8 | . 3 8 4 3 . . 4 4 2 5 7 8 4 4 . Tactical Retreats 27 | . 4 2 6 . . . 2 . . 3 2 3 2 3 . Traps | -11 -10 -10 -9 -9 -9 -8 -8 -8 -7 -6 -5 -4 -3 -3 -2 ------- Run | Scr Mat Min Mat Min Exi Min Mat Gar Fac Fac Fac Fac Res Tes Res Traps Triggered 12 | . 1 . 1 . . . 1 3 . . 1 2 1 2 . Indirectly . | . . . . . . . . . . . . . . . . Trap Hack Attempts . | . . . . . . . . . . . . . . . . Triggered . | . . . . . . . . . . . . . . . . Disarmed . | . . . . . . . . . . . . . . . . Reprogrammed . | . . . . . . . . . . . . . . . . Reused . | . . . . . . . . . . . . . . . . Traps Extracted . | . . . . . . . . . . . . . . . . Installed . | . . . . . . . . . . . . . . . . Triggered . | . . . . . . . . . . . . . . . . Exploded 1 | . . . . . 1 . . . . . . . . . . Machines | -11 -10 -10 -9 -9 -9 -8 -8 -8 -7 -6 -5 -4 -3 -3 -2 ---------- Run | Scr Mat Min Mat Min Exi Min Mat Gar Fac Fac Fac Fac Res Tes Res Machines Disabled 23 | . . . 6 . . . 1 1 . 1 7 2 . 5 . Max in Single Turn 4 | . . . 1 . . . 1 1 . 1 4 1 . 1 . Garrison Access 3 | . . . . . . . . . 1 1 . 1 . . . Machines Sabotaged . | . . . . . . . . . . . . . . . . Garrisons Compromised . | . . . . . . . . . . . . . . . . Overloaded Fab Kills . | . . . . . . . . . . . . . . . . Fab Network Shutdowns 1 | . . . . . . . . . . . 1 . . . . Hacking | -11 -10 -10 -9 -9 -9 -8 -8 -8 -7 -6 -5 -4 -3 -3 -2 --------- Run | Scr Mat Min Mat Min Exi Min Mat Gar Fac Fac Fac Fac Res Tes Res Machines Accessed 51 | . 5 . 6 . 1 . 7 . 4 3 5 8 4 8 . Terminals 31 | . 5 . 5 . . . 5 . 1 1 4 3 3 4 . Fabricators 5 | . . . . . . . . . 1 . 1 1 1 1 . Repair Stations 5 | . . . 1 . . . 1 . 1 1 . . . 1 . Recycling Units . | . . . . . . . . . . . . . . . . Scanalyzers 5 | . . . . . . . . . . . . 3 . 2 . Garrison Access 4 | . . . . . . . 1 . 1 1 . 1 . . . Total Hacks 139 | . 12 . 18 . 1 . 19 . 9 3 12 32 16 17 . Successful 56 | . 4 . 9 . 1 . 7 . 3 1 5 15 5 6 . Failed 83 | . 8 . 9 . . . 12 . 6 2 7 17 11 11 . Catastrophic 13 | . 2 . 1 . . . 3 . . 1 . 3 2 1 . Database Lockouts . | . . . . . . . . . . . . . . . . Manual 57 | . 12 . 13 . 1 . 6 . 4 . 8 7 1 5 . Terminals 94 | . 12 . 16 . . . 15 . 4 1 11 15 13 7 . Fabricators 14 | . . . . . . . . . 1 . 1 5 3 4 . Repair Stations 12 | . . . 2 . . . 2 . 3 1 . . . 4 . Recycling Units . | . . . . . . . . . . . . . . . . Scanalyzers 13 | . . . . . . . . . . . . 11 . 2 . Garrison Access 5 | . . . . . . . 2 . 1 1 . 1 . . . Terminal Hacks 23 | . 4 . 4 . 1 . 2 . . . 4 4 4 . . Record 1 | . . . . . . . . . . . . . 1 . . Part Schematic 2 | . 1 . . . . . . . . . 1 . . . . Prototype ID Bank 4 | . . . 2 . . . 1 . . . . . 1 . . Fabricator Index 1 | . . . . . . . . . . . . . 1 . . Scanalyzer Index 1 | . . . . . . . . . . . 1 . . . . Unreport Threat 8 | . 3 . 1 . . . . . . . 1 3 . . . Locate Traps 3 | . . . 1 . . . 1 . . . . . 1 . . Recall Extermination 1 | . . . . . . . . . . . 1 . . . . Recall Assault 1 | . . . . . . . . . . . . 1 . . . EX-Prototype ID Bank 1 | . . . . . 1 . . . . . . . . . . Fabricator Hacks 6 | . . . . . . . . . . . 1 3 . 2 . Network Status 1 | . . . . . . . . . . . . 1 . . . Load Schematic 2 | . . . . . . . . . . . . 1 . 1 . Build 3 | . . . . . . . . . . . 1 1 . 1 . Repair Station Hacks 6 | . . . 1 . . . 2 . 1 . . . . 2 . Scan Component 4 | . . . 1 . . . 1 . 1 . . . . 1 . Repair 2 | . . . . . . . 1 . . . . . . 1 . Recycling Unit Hacks . | . . . . . . . . . . . . . . . . Scanalyzer 6 | . . . . . . . . . . . . 5 . 1 . Insert Component 4 | . . . . . . . . . . . . 3 . 1 . Analyze 2 | . . . . . . . . . . . . 2 . . . Garrison Access Hacks 4 | . . . . . . . 1 . 1 1 . 1 . . . Unlock Access 1 | . . . . . . . 1 . . . . . . . . Seal Access 3 | . . . . . . . . . 1 1 . 1 . . . Unauthorized Hacks 33 | . . . 14 . . . 4 . 4 . . 5 2 4 . Terminals 10 | . . . 4 . . . 2 . 1 . . 2 1 . . Track 2 | . . . 2 . . . . . . . . . . . . Botnet 8 | . . . 2 . . . 2 . 1 . . 2 1 . . Fabricators 1 | . . . . . . . . . . . . . . 1 . Prioritize 1 | . . . . . . . . . . . . . . 1 . Repair Stations . | . . . . . . . . . . . . . . . . Recycling Units . | . . . . . . . . . . . . . . . . Scanalyzers . | . . . . . . . . . . . . . . . . Garrison Access . | . . . . . . . . . . . . . . . . Data Cores Recovered . | . . . . . . . . . . . . . . . . Used . | . . . . . . . . . . . . . . . . Hacking Detections 43 | . 5 . 6 . . . 6 . 3 2 5 7 4 5 . Full Trace Events 4 | . . . . . . . . . . . 1 2 . 1 . Feedback Events 1 | . . . . . . . . . . . . . . 1 . Hackware Fried 1 | . . . . . . . . . . . . . . 1 . Feedback Blocked . | . . . . . . . . . . . . . . . . Robot Schematics Acquired . | . . . . . . . . . . . . . . . . Robots Built . | . . . . . . . . . . . . . . . . Matter . | . . . . . . . . . . . . . . . . Time . | . . . . . . . . . . . . . . . . Total Robot Build Rating . | . . . . . . . . . . . . . . . . Part Schematics Acquired 3 | . 1 . . . . . . . . . 1 1 . . . Parts Built 4 | . . . . . . . . . . . 2 2 . . . Matter 797 | . . . . . . . . . . . 278 234 . 285 . Time 279 | . . . . . . . . . . . 69 58 . 152 . Total Part Build Rating 32 | . . . . . . . . . . . 18 14 . . . Parts Repaired 2 | . . . . . . . 1 . . . . . . 1 . Time 39 | . . . . . . . 26 . . . . . . 13 . Parts Recycled . | . . . . . . . . . . . . . . . . Recycled Matter . | . . . . . . . . . . . . . . . . Retrieved Matter . | . . . . . . . . . . . . . . . . Retrieved Components . | . . . . . . . . . . . . . . . . Parts Scanalyzed 1 | . . . . . . . . . . . . 1 . . . Part Schematics Acquired 1 | . . . . . . . . . . . . 1 . . . Parts Damaged . | . . . . . . . . . . . . . . . . Bothacking | -11 -10 -10 -9 -9 -9 -8 -8 -8 -7 -6 -5 -4 -3 -3 -2 ------------ Run | Scr Mat Min Mat Min Exi Min Mat Gar Fac Fac Fac Fac Res Tes Res Used RIF Installer 1 | . . . . . . . . 1 . . . . . . . Robots Hacked . | . . . . . . . . . . . . . . . . Non-combat . | . . . . . . . . . . . . . . . . Combat . | . . . . . . . . . . . . . . . . Robot Hacks Applied . | . . . . . . . . . . . . . . . . Relay Couplers Released . | . . . . . . . . . . . . . . . . Robots Rewired . | . . . . . . . . . . . . . . . . Allies Hacked . | . . . . . . . . . . . . . . . . Hacks Repelled . | . . . . . . . . . . . . . . . . Allies | -11 -10 -10 -9 -9 -9 -8 -8 -8 -7 -6 -5 -4 -3 -3 -2 -------- Run | Scr Mat Min Mat Min Exi Min Mat Gar Fac Fac Fac Fac Res Tes Res Total Allies 1 | . . . . 1 . . . . . . . . . . . Largest Group 1 | . . . . 1 1 . . . . . . . . . . Highest-Rated Group 31 | . . . . 31 31 . . . . . . . . . . Highest-Rated Ally 31 | . . . . 31 31 . . . . . . . . . . Total Orders . | . . . . . . . . . . . . . . . . Ally Attacks 4 | . . . . 4 . . . . . . . . . . . Total Damage 62 | . . . . 62 . . . . . . . . . . . Kills 1 | . . . . 1 . . . . . . . . . . . Allies Corrupted . | . . . . . . . . . . . . . . . . Allies Melted . | . . . . . . . . . . . . . . . . Intel | -11 -10 -10 -9 -9 -9 -8 -8 -8 -7 -6 -5 -4 -3 -3 -2 ------- Run | Scr Mat Min Mat Min Exi Min Mat Gar Fac Fac Fac Fac Res Tes Res Robot Analysis Total . | . . . . . . . . . . . . . . . . Derelict Logs Recovered 1 | . . 1 . . . . . . . . . . . . . Drone Launches . | . . . . . . . . . . . . . . . . Drone Recoveries . | . . . . . . . . . . . . . . . . Exploration | -11 -10 -10 -9 -9 -9 -8 -8 -8 -7 -6 -5 -4 -3 -3 -2 ------------- Run | Scr Mat Min Mat Min Exi Min Mat Gar Fac Fac Fac Fac Res Tes Res Turns Passed 13153 | 55 1016 275 1414 345 240 63 1401 519 825 750 2264 1539 1505 942 . Spaces Moved 7437 | 37 615 198 821 261 213 51 797 263 463 452 1339 749 717 461 . Core 5 | 5 . . . . . . . . . . . . . . . Treads 110 | 1 . . . . . . 28 . 20 12 30 4 15 . . Legs . | . . . . . . . . . . . . . . . . Wheels 7322 | 31 615 198 821 261 213 51 769 263 443 440 1309 745 702 461 . Hover . | . . . . . . . . . . . . . . . . Flight . | . . . . . . . . . . . . . . . . Fastest Speed 50 | 50 100 120 110 110 110 110 120 120 120 103 100 120 120 120 . Average Speed 119 | 97 107 120 117 115 110 110 124 120 124 119 112 127 130 124 . Slowest Speed 260 | 160 120 120 150 120 110 110 220 120 220 220 240 260 180 170 . Overloaded Moves . | . . . . . . . . . . . . . . . . Propulsion Burnouts . | . . . . . . . . . . . . . . . . Robots Hopped . | . . . . . . . . . . . . . . . . Cave-ins Triggered 1 | . . . . . . . . . . . . . . 1 . Exploration Rate (%) 40 | 4 91 42 62 52 61 18 59 61 21 13 35 25 20 50 . Regions Visited 15 Branch Regions 5 Pre-discovered Areas 2 | . . 1 . 1 . . . . . . . . . . . Known Exits Taken 7 | . . . . . . . 1 . 1 1 1 1 1 1 . Unknown Exits Taken 7 | 1 1 1 1 1 1 1 . . . . . . . . . Scrap Searched 2 | . . 1 . 1 . . . . . . . . . . . Spaces Dug 114 | . . . . . . . 15 6 7 16 19 17 15 19 . Terrain Destroyed 419 | . . . 60 5 . . 15 21 11 26 121 82 39 39 . Melee 86 | . . . . . . . 15 6 7 16 12 . 11 19 . Projectile 110 | . . . . . . . . . . . 26 49 21 14 . AOE 223 | . . . 60 5 . . . 15 4 10 83 33 7 6 . Actions | -11 -10 -10 -9 -9 -9 -8 -8 -8 -7 -6 -5 -4 -3 -3 -2 --------- Run | Scr Mat Min Mat Min Exi Min Mat Gar Fac Fac Fac Fac Res Tes Res Total 10557 | 52 814 215 1174 300 219 54 1123 437 628 580 1899 1196 1149 717 . Wait 1904 | 6 60 3 234 22 . 2 220 132 90 58 345 293 305 134 . Move 7420 | 36 614 197 820 260 212 50 796 261 462 451 1338 748 716 459 . Hop . | . . . . . . . . . . . . . . . . Pick Up 152 | 4 16 2 21 2 2 . 12 . 10 7 23 23 15 15 . Fast Attach 75 | 6 7 . 3 . . . 6 . 3 2 18 9 11 10 . Attach 59 | . 5 . 2 . . . 2 . 5 6 12 16 7 4 . Detach 5 | . . . . . . . . . . . 2 2 1 . . Swap 117 | . 9 . 14 6 2 . 8 2 3 6 20 15 14 18 . Drop 143 | . 15 2 18 6 3 . 21 . 7 4 24 15 12 16 . Fire 509 | . 87 11 62 4 . 2 29 5 32 29 98 74 48 28 . Melee 145 | . . . . . . . 29 13 16 17 19 . 19 32 . Ram 3 | . 1 . . . . . . . . . . 1 1 . . Kick . | . . . . . . . . . . . . . . . . Crush . | . . . . . . . . . . . . . . . . Escape Stasis 25 | . . . . . . . . 24 . . . . . 1 . Rewire . | . . . . . . . . . . . . . . . . Trap . | . . . . . . . . . . . . . . . . Miscellaneous . | . . . . . . . . . . . . . . . . Route ------- -11/Scrapyard -10/Materials (discovered 4 exits: *Mat x3 / [*Min]) -10/Mines -9/Materials (discovered 4 exits: *Mat x2 / [*Min] / [*Sto]) -9/Mines (discovered 2 exits: *Mat / *Exi) -9/Exiles -8/Mines -8/Materials (discovered 2 exits: *Fac / Gar) -8/Garrison (discovered 2 exits: *Fac x2) -7/Factory (discovered 2 exits: *Fac / *Low) -6/Factory -5/Factory -4/Factory -3/Research -3/Testing -2/Research History --------- Turn | Location | Event 19 | -11/Scrapyard | Discovered new exit (range 16) 56 | -11/Scrapyard | Entered Materials 219 | -10/Materials | Lost 3 parts (1u2w) 330 | -10/Materials | Build established: Mutant 504 | -10/Materials | Discovered new exit (range 15) 627 | -10/Materials | Discovered new exit (range 14) 967 | -10/Materials | Discovered new exit (range 6) 1052 | -10/Materials | Discovered new exit (range 16) 1072 | -10/Materials | Entered Mines 1268 | -10/Mines | Learned location of Mines (-9) 1270 | -10/Mines | Assembled infested the area 1275 | -10/Mines | Assisted by a Guerilla fighting off Assembled 1283 | -10/Mines | Core integrity fell below 50% 1320 | -10/Mines | Discovered new exit (range 13) 1332 | -10/Mines | Received a Rocket Launcher from a helpful Derelict 1347 | -10/Mines | Entered Materials 1347 | -9/Materials | Evolved 2 slots: Propulsion x1, Utility x1 1634 | -9/Materials | Build established: Hauler-Mutant 1765 | -9/Materials | Discovered new exit (range 12) 1929 | -9/Materials | Discovered new exit (range 15) 2458 | -9/Materials | Discovered new exit (range 14) 2755 | -9/Materials | Discovered new exit (range 6) 2761 | -9/Materials | Entered Mines 2764 | -9/Mines | Escorted by a lone wolf Derelict 2784 | -9/Mines | Learned location of Storage (-9) 2833 | -9/Mines | Discovered new exit (range 7) 2901 | -9/Mines | Found a damaged Exp. Sensor Array with a note attached 2908 | -9/Mines | Found Prototype Device 3101 | -9/Mines | Deemed a non-threat by the Exiles lab entrance 3101 | -9/Mines | Discovered new exit (range 5) 3106 | -9/Mines | Entered Exiles 3106 | -9/Exiles | Accompanied by 1 ally 3134 | -9/Exiles | Met 8R-AWN 3153 | -9/Exiles | Met EX-HEX 3181 | -9/Exiles | Met EX-BIN 3199 | -9/Exiles | Aligned with FarCom system 3200 | -9/Exiles | Given EX-Vault access code 3225 | -9/Exiles | Opened EX-Vault 3235 | -9/Exiles | Found Modified TNC 3240 | -9/Exiles | Found Firepult 3264 | -9/Exiles | Warned to stay clear of 0b10 Research branches 3277 | -9/Exiles | Exiles lab attacked by MAIN.C 3337 | -9/Exiles | Discovered new exit (range 10) 3346 | -9/Exiles | Stole two prototypes: Modified TNC, Firepult 3346 | -9/Exiles | Entered Mines 3403 | -8/Mines | Discovered new exit (range 5) 3409 | -8/Mines | Entered Materials 3409 | -8/Materials | Evolved 2 slots: Utility x2 3532 | -8/Materials | Repaired Lgt. Treads 4656 | -8/Materials | Discovered new exit (range 8) 4728 | -8/Materials | Garrison activated, responded to threat 4808 | -8/Materials | Identified exit to Garrison 4810 | -8/Materials | Entered Garrison 4858 | -8/Garrison | Triggered checkpoint 5135 | -8/Garrison | Discovered new exit (range 10) 5256 | -8/Garrison | Triggered checkpoint 5305 | -8/Garrison | Discovered new exit (range 10) 5323 | -8/Garrison | Installed Relay Interface Framework 5329 | -8/Garrison | Entered Factory 5329 | -7/Factory | Evolved 2 slots: Utility x1, Weapon x1 5331 | -7/Factory | FarCom data flow suspended 5438 | -7/Factory | Discovered new exit (range 5) 5443 | -7/Factory | Identified exit to Lower Caves 5787 | -7/Factory | Lost 4 parts (3n1w) 6124 | -7/Factory | Discovered new exit (range 16) 6143 | -7/Factory | Identified exit to Factory 6154 | -7/Factory | Entered another Factory area 6154 | -6/Factory | Evolved 2 slots: Propulsion x1, Utility x1 6451 | -6/Factory | Build established: Hauler-Assassin 6698 | -6/Factory | Lost 6 parts (2n1u3w) 6865 | -6/Factory | Discovered new exit (range 16) 6903 | -6/Factory | Identified exit to Factory 6904 | -6/Factory | Entered another Factory area 6904 | -5/Factory | Evolved 2 slots: Power x1, Utility x1 6905 | -5/Factory | Identified Exp. Sensor Array 7144 | -5/Factory | Fabricated Lgt. Quantum Reactor (x2) 7401 | -5/Factory | Local fabrication network quarantined 8294 | -5/Factory | Garrison activated, responded to threat 8368 | -5/Factory | Lost 3 parts (1p2n) 8407 | -5/Factory | Garrison activated, responded to threat 8507 | -5/Factory | Lost 4 parts (1n1u2w) 8704 | -5/Factory | First assault squad dispatched 8828 | -5/Factory | System corruption reached 10% 8872 | -5/Factory | Spotted B-75 Beast 8919 | -5/Factory | Lost 5 parts (1n2u2w) 9137 | -5/Factory | Discovered new exit (range 16) 9158 | -5/Factory | Identified exit to Factory 9159 | -5/Factory | Build established: Hauler-Mutant 9168 | -5/Factory | Entered another Factory area 9168 | -4/Factory | Evolved 2 slots: Propulsion x1, Utility x1 9418 | -4/Factory | First assault squad dispatched 9679 | -4/Factory | Fabricated Centrium Wheel (x2) 9806 | -4/Factory | Spotted B-86 Titan 10472 | -4/Factory | Discovered new exit (range 15) 10494 | -4/Factory | Garrison activated, responded to threat 10605 | -4/Factory | Lost 15 parts (1p3n4u7w) 10607 | -4/Factory | Destroyed 7 combat bots 10705 | -4/Factory | Identified exit to Research 10707 | -4/Factory | Entered Research 10707 | -3/Research | Evolved 2 slots: Utility x1, Weapon x1 11662 | -3/Research | Lost 3 parts (1n2w) 11762 | -3/Research | System corruption reached 10% 11802 | -3/Research | Lost 3 parts (1n2w) 12180 | -3/Research | Discovered new exit (range 5) 12185 | -3/Research | Identified exit to Testing 12212 | -3/Research | Entered Testing 12273 | -3/Testing | Found Prototype Launcher 12273 | -3/Testing | Identified Tesla Bomb Launcher 12373 | -3/Testing | Found Prototype Energy Cannon 12473 | -3/Testing | Imp. System Shield fried by hacking feedback 12516 | -3/Testing | Repaired Hcp. Storage Unit 12649 | -3/Testing | Found Prototype Energy Gun 12770 | -3/Testing | Crushed by falling debris 12786 | -3/Testing | Found Prototype Energy Cannon 12821 | -3/Testing | Identified Hyp. EM Gauss Rifle 12886 | -3/Testing | Spotted PP-TDU6W7PMKP 12912 | -3/Testing | Lost 3 parts (1p1n1w) 13035 | -3/Testing | System corruption reached 30% 13134 | -3/Testing | Discovered new exit (range 11) 13153 | -3/Testing | Identified exit to Research 13154 | -3/Testing | Entered Research 13154 | -2/Research | Evolved 2 slots: Utility x2 13154 | -2/Research | Self-destructed Last Messages --------------- 13070_ System corrupted: Component data lost. 13070_ Ended siege mode. 13072_ Acquired Prototype Treads. 13075_ Acquired 70 matter. 13078_ Dropped Mic. Fission Core. 13082_ Connecting with Scanalyzer... 13086_ P-80 Master destroyed. 13089_ Acquired 70 matter. 13095_ C8BPQUMFKDPQQ/HQML5,MBFHEO7SS>POIRXVF 13111_ System corrupted: Matter fused (-5). 13119_ Connecting with Terminal... 13126_ OT:DOEQO/DBIBO0X=XFX=YI8F 13133_ Centrium Wheel destroyed. 13133_ Hyp. Railgun destroyed. 13134_ EXIT=FOUND 13148_ Lgt. Particle Reactor destroyed. 13153_ EXIT=IDENTIFIED: RESEARCH PARAMETERS=UTILITY_2 LOCATION=RESEARCH GOAL=ESCAPE Map ----- +----------------------------------------------------+ | ?????????????????????????????????????????????????? | | ?????????????????????????????????????????????????? | | ?????????????????????????????????????????????????? | | ?????????????????????????????????????????????????? | | ?????????????????????????????????????????????????? | | ?????????????????????????????????????????????????? | | ?????????????????????????????????????????????????? | | ?????????????????????????????????????????????????? | | ?????????????????????????????????????????????????? | | ?????????????????????????????????????????????????? | | ?????????????????????????????????????????????????? | | ?????????????????????????????????????????????????? | | ?????????????????????????????????????????????????? | | ?????????????????????????????????????????????????? | | ?????????????????????????????????????????????????? | | ?????????????????????????????????????????????????? | | ?????????????????????????????????????????????????? | | ?????????????????????????????????????????????????? | | ?????????????????????????????????????????????????? | | ?????????????????????????????????????????????????? | | ?????????????????????????????????????????????????? | | ?????????????????????????????????????????????????? | | ???????????????????????######????????????????????? | | ???????????????????????# #????????????????????? | | ???????????????????????# #????????????????????? | | ???????????????????????# @ #????????????????????? | | ???????????????????????+ ???????????????? | | ???????????????????????# ??????????? | | ???????????????????????# ?????????? | | ???????????????????????# ?????????? | | ???????????????????????######## ###+??????????? | | ???????????????????????????????? #?????????????? | | ????????????????????????????????? #?????????????? | | ?????????????????????????????????? #?????????????? | | ???????????????????????????????????#?????????????? | | ?????????????????????????????????????????????????? | | ?????????????????????????????????????????????????? | | ?????????????????????????????????????????????????? | | ?????????????????????????????????????????????????? | | ?????????????????????????????????????????????????? | | ?????????????????????????????????????????????????? | | ?????????????????????????????????????????????????? | | ?????????????????????????????????????????????????? | | ?????????????????????????????????????????????????? | | ?????????????????????????????????????????????????? | | ?????????????????????????????????????????????????? | | ?????????????????????????????????????????????????? | | ?????????????????????????????????????????????????? | | ?????????????????????????????????????????????????? | | ?????????????????????????????????????????????????? | +----------------------------------------------------+ Best States ------------- Heat Dissipation 84 Coolant Potential 100 Energy Generation 41 Energy Capacity 420 Matter Stores 300 Matter Capacity 300 Sight Range 16 Robot Scan Range 30 Terrain Scan Density 10 Jamming Range 16 Armor Coverage 300 Resistance: TH 30 Weapon Cycling 20 Evasion (%) 40 Targeting Accuracy 8 Armor Integrity Analysis 50 Recoil Reduction 3 Offensive Hacking 12 Defensive Hacking 12 Item Schematics ----------------- Hcp. Storage Unit | -10/Materials | Hacked Centrium Wheel | -5/Factory | Hacked Exp. Sensor Array | -4/Factory | Scanalyzed Robot Schematics ------------------ None Fabricated ------------ Lgt. Quantum Reactor | x2 | -5/Factory | Preloaded Centrium Wheel | x2 | -4/Factory Alien Tech Used ----------------- None Achievements -------------- None Challenges ------------ None Game ------ Seed SurveybotLightUnit Manual? 0 Play Time 01:33:54 Cumulative 663.3 hours Start 2020.01.28 @ 06:21:44 End 2020.01.29 @ 16:34:24 Sessions 5 Manual Loads 0 Difficulty Rogue Special Mode None Game No. 612 Rogue 572 Adventurer 40 Explorer 0 Win Type - Total 55 Types 41/0/12/2/0/0/0 Lore% 88 Gallery% 90 Achievement% 69 Wizard Run 0 Options --------- ASCII 0 Keyboard 0 Movement Numpad Keybinds 0 Fullscreen 0 Font 16/Terminus Map View 76x50 Tactical HUD 1 Map Filters NONE Filters NONE Steam 1 RUN: f0ae7400-0fd4-4d90-aaee-6fa7ec92b099